bitfinex/quotes_SOLUSD_20250830
["timestamp","ask_amount","ask_price","bid_price","bid_amount"]
[1756550390364,1e-08,202.52,202.51,63.5330717]
[1756550390559,1e-08,202.52,202.51,64.2030717]
[1756550391192,1e-08,202.52,202.51,63.5330717]
[1756550393675,1e-08,202.52,202.51,37.5330717]
[1756550394174,1e-08,202.52,202.51,23.7330717]
[1756550399784,0.68000001,202.52,202.51,19.78106275]
[1756550400155,1e-08,202.52,202.51,19.78106275]
[1756550402295,1e-08,202.52,202.51,24.4330717]
[1756550402496,1e-08,202.52,202.51,19.78106275]
[1756550403191,1e-08,202.52,202.51,23.7330717]
[1756550403369,1e-08,202.52,202.51,24.4330717]
[1756550403570,0.72000001,202.52,202.51,33.58106275]
[1756550403896,24.67200896,202.52,202.51,28.643035]
[1756550404077,24.67200896,202.52,202.51,18.73802775]
[1756550405695,24.67200896,202.52,202.51,13.8]
[1756550407270,20.0,202.5,202.48,14.876708]
[1756550407472,4.67200895,202.49,202.48,0.03]
[1756550409596,7.98543106,202.49,202.48,0.03]
[1756550410493,4.67200895,202.49,202.48,0.03]
[1756550411283,7.98532047,202.49,202.48,0.03]
[1756550411484,4.67200895,202.49,202.48,0.03]
[1756550416404,3.95200895,202.49,202.48,0.03]
[1756550416908,3.95200895,202.5,202.48,0.73]
[1756550417215,20.0,202.49,202.48,14.877442]
[1756550418595,20.0,202.49,202.48,19.81620138]
[1756550419218,3.95200895,202.5,202.48,19.81620138]
[1756550419689,20.0,202.49,202.48,19.81620138]
[1756550420106,3.95200895,202.5,202.48,19.81620138]
[1756550420325,23.95200895,202.49,202.48,19.81620138]
[1756550420496,20.72000001,202.52,202.48,19.81620138]
[1756550420698,3.95200895,202.49,202.48,19.81620138]
[1756550420907,23.95200895,202.49,202.48,19.81620138]
[1756550421312,0.72,202.51,202.48,19.81620138]
[1756550421616,23.95200895,202.5,202.48,20.51620138]
[1756550422387,23.95200895,202.5,202.48,5.66875938]
[1756550422587,23.95200896,202.52,202.49,0.7]
[1756550422792,1e-08,202.52,202.49,33.29798195]
[1756550422991,1e-08,202.52,202.5,0.7]
[1756550423517,1e-08,202.52,202.51,15.544504]
[1756550423814,1e-08,202.52,202.51,20.48253175]
[1756550424122,1e-08,202.52,202.51,24.4345407]
[1756550424799,1e-08,202.52,202.51,19.78253175]
[1756550424997,4.67200896,202.52,202.51,19.78253175]
[1756550425198,24.67200896,202.52,202.51,4.93802775]
[1756550425632,24.67200896,202.52,202.5,14.845973]
[1756550425795,4.67200895,202.51,202.5,14.845973]
[1756550426305,4.67200895,202.51,202.49,4.93842702]
[1756550426506,23.95200895,202.5,202.49,4.93842702]
[1756550430426,3.95200896,202.52,202.49,5.63842702]
[1756550430600,3.95200896,202.52,202.49,4.93842702]
[1756550430798,3.95200896,202.52,202.49,20.48513502]
[1756550431198,20.0,202.5,202.49,5.63842702]
[1756550431722,20.0,202.5,202.49,20.48513502]
[1756550432129,3.95200896,202.52,202.49,20.48513502]
[1756550432425,3.95200896,202.52,202.5,0.68]
[1756550432910,3.95200896,202.52,202.5,15.525973]
[1756550433325,3.95200896,202.52,202.51,4.93802775]
[1756550433737,3.95200896,202.52,202.51,19.78400075]
[1756550434198,1e-08,202.52,202.51,20.46400075]
[1756550434404,1e-08,202.52,202.51,34.26400075]
[1756550434602,1e-08,202.52,202.51,38.2160097]
[1756550441840,1e-08,202.55,202.51,51.81160371]
[1756550442044,1e-08,202.55,202.54,3.95200895]
[1756550442251,1e-08,202.55,202.54,42.41200895]
[1756550442417,1e-08,202.55,202.54,43.09200895]
[1756550442624,1e-08,202.55,202.54,57.93284095]
[1756550443413,1e-08,202.55,202.54,14.840832]
[1756550443644,1e-08,202.55,202.54,62.19013728]
[1756550444629,1e-08,202.55,202.54,62.87013728]
[1756550445645,1e-08,202.55,202.54,58.91812833]
[1756550445945,1e-08,202.55,202.54,62.87013728]
[1756550447630,1e-08,202.55,202.54,76.67013728]
[1756550448146,0.06,202.59,202.56,3.95200895]
[1756550448350,0.06,202.59,202.57,42.41200895]
[1756550448537,0.06,202.59,202.58,3.95200895]
[1756550448848,0.06,202.58,202.57,42.41200895]
[1756550449552,0.06,202.58,202.57,47.34857408]
[1756550449730,0.06,202.58,202.57,62.18867208]
[1756550453234,0.06,202.58,202.57,62.86867208]
[1756550453447,0.06,202.58,202.57,76.66867208]
[1756550454329,0.06,202.58,202.57,75.98867208]
[1756550454753,0.06,202.58,202.57,76.66867208]
[1756550455952,0.06,202.58,202.57,72.03666313]
[1756550456158,0.06,202.58,202.57,75.98867208]
[1756550457256,0.06,202.59,202.57,75.98867208]
[1756550457456,0.06,202.6,202.58,4.63200895]
[1756550457764,0.06,202.62,202.58,4.63200895]
[1756550457765,0.06,202.62,202.59,42.39200895]
[1756550457929,0.06,202.62,202.61,3.95200895]
[1756550458134,0.06,202.62,202.61,61.02759949]
[1756550458760,0.75,202.62,202.61,57.07559054]
[1756550459134,0.75,202.62,202.61,71.91275254]
[1756550459534,4.70200895,202.62,202.61,33.47275254]
[1756550459841,4.70200895,202.62,202.61,18.63559054]
[1756550460549,0.75,202.62,202.61,18.63559054]
[1756550461064,4.70200895,202.62,202.61,33.47495454]
[1756550462353,0.75,202.62,202.61,19.77495454]
[1756550464260,4.70200895,202.62,202.61,19.77495454]
[1756550464459,4.70200895,202.62,202.6,4.93583415]
[1756550464660,0.06,202.62,202.6,19.77519815]
[1756550464965,0.66,202.61,202.6,19.77519815]
[1756550466854,0.66,202.61,202.6,19.80519815]
[1756550468171,0.72,202.62,202.6,19.80519815]
[1756550468356,4.67200895,202.62,202.6,19.80519815]
[1756550468553,4.01200895,202.62,202.6,19.80519815]
[1756550468764,0.66,202.61,202.6,19.80519815]
[1756550470177,4.01200895,202.62,202.6,19.80519815]
[1756550470469,0.72,202.62,202.6,19.80519815]
[1756550470855,20.0,202.61,202.6,58.22519815]
[1756550471050,20.0,202.61,202.6,19.80519815]
[1756550471255,20.0,202.61,202.6,4.96583415]
[1756550471573,20.66,202.61,202.6,19.80519815]
[1756550471878,20.66,202.61,202.6,4.96583415]
[1756550472076,24.61200895,202.61,202.6,0.03]
[1756550473170,38.20760296,202.61,202.6,0.03]
[1756550473478,45.4711475,202.61,202.6,0.03]
[1756550474167,27.92354454,202.61,202.6,0.03]
[1756550475955,66.34354454,202.61,202.6,0.03]
[1756550479565,26.0,202.58,202.57,0.03]
[1756550479780,66.85913855,202.58,202.57,0.03]
[1756550479967,67.51913855,202.58,202.57,0.03]
[1756550480168,105.93913855,202.58,202.57,0.03]
[1756550483563,105.94610377,202.58,202.57,0.03]
[1756550484683,23.95200895,202.58,202.57,0.03]
[1756550485671,24.61200895,202.58,202.57,0.03]
[1756550485986,27.93021853,202.58,202.57,0.03]
[1756550486981,92.35021853,202.58,202.57,0.03]
[1756550487386,105.94581254,202.58,202.57,0.03]
[1756550487593,110.88213399,202.58,202.57,0.03]
[1756550488987,105.94581254,202.58,202.57,0.03]
[1756550489569,49.97820958,202.58,202.57,0.03]
[1756550489772,92.35021853,202.58,202.57,0.03]
[1756550499399,53.93021853,202.58,202.57,0.03]
[1756550499605,91.69021853,202.58,202.57,0.03]
[1756550499990,62.37200895,202.58,202.57,0.75]
[1756550500307,23.95200895,202.58,202.57,0.75]
[1756550501605,20.0,202.58,202.57,5.68656513]
[1756550501905,0.06,202.61,202.57,9.63857408]
[1756550502106,0.06,202.61,202.58,4.67200895]
[1756550502487,0.06,202.61,202.59,0.72]
[1756550502906,0.06,202.61,202.6,4.93583415]
[1756550503386,0.06,202.61,202.6,5.65583415]
[1756550503588,0.06,202.61,202.6,10.59166915]
[1756550506215,20.06,202.61,202.6,10.59166915]
[1756550506598,0.06,202.61,202.6,10.59166915]
[1756550506792,0.06,202.61,202.6,24.29166915]
[1756550507208,0.06,202.61,202.6,28.2436781]
[1756550512818,0.06,202.62,202.6,28.2436781]
[1756550513012,0.2,202.63,202.61,4.67200895]
[1756550513217,0.2,202.63,202.62,3.95200895]
[1756550513413,0.2,202.63,202.62,19.50770395]
[1756550513995,0.2,202.63,202.62,24.4430509]
[1756550517122,0.06,202.64,202.62,38.1430509]
[1756550517418,0.2,202.65,202.62,33.47104195]
[1756550517623,0.92,202.65,202.62,18.63534695]
[1756550517800,0.72,202.64,202.63,14.837163]
[1756550518314,24.67200895,202.64,202.63,14.837163]
[1756550518522,20.72,202.64,202.63,19.77226639]
[1756550519920,20.72,202.64,202.63,14.837163]
[1756550519921,24.67200895,202.64,202.63,14.837163]
[1756550520724,20.72,202.64,202.63,19.77226639]
[1756550520910,24.67200895,202.64,202.63,19.77226639]
[1756550521598,24.73200895,202.64,202.63,19.77226639]
[1756550523893,24.73200895,202.64,202.63,14.837163]
[1756550528103,24.73200895,202.64,202.63,19.77226639]
[1756550528299,24.73200895,202.64,202.63,14.837163]
[1756550530002,20.06,202.64,202.63,20.43226639]
[1756550530203,0.06,202.64,202.63,24.38427534]
[1756550531627,1e-08,202.65,202.63,38.08427534]
[1756550531926,1e-08,202.65,202.64,4.61200895]
[1756550532437,1e-08,202.65,202.64,6.58970995]
[1756550533331,1e-08,202.65,202.64,11.52456979]
[1756550534329,0.06,202.67,202.64,11.52456979]
[1756550534628,0.06,202.67,202.66,3.95200895]
[1756550535034,0.2,202.7,202.66,18.31200895]
[1756550535206,0.2,202.7,202.68,3.95200895]
[1756550535406,0.2,202.7,202.68,8.88589487]
[1756550535629,0.2,202.7,202.68,9.54589487]
[1756550536026,0.2,202.7,202.68,62.75718887]
[1756550536233,20.72000001,202.69,202.68,14.831294]
[1756550536603,20.00000001,202.69,202.68,14.831294]
[1756550536809,20.00000001,202.69,202.68,15.491294]
[1756550537004,20.00000001,202.69,202.68,19.76517992]
[1756550537840,20.72000001,202.69,202.68,19.76517992]
[1756550538014,24.67200896,202.69,202.68,14.831294]
[1756550538334,20.72000001,202.69,202.68,19.76517992]
[1756550539333,24.67200896,202.69,202.68,14.831294]
[1756550539639,20.0,202.65,202.63,4.9650111]
[1756550539831,4.67200895,202.64,202.63,4.9650111]
[1756550540203,0.72,202.64,202.63,4.9650111]
[1756550540814,0.72,202.64,202.63,19.8014391]
[1756550541216,4.67200895,202.64,202.63,14.866428]
[1756550542433,0.72,202.64,202.63,14.866428]
[1756550542623,4.67200895,202.64,202.63,14.866428]
[1756550543429,0.72,202.64,202.63,14.866428]
[1756550543639,4.67200895,202.64,202.63,14.866428]
[1756550544727,4.67200895,202.64,202.63,19.80153139]
[1756550544953,20.0,202.65,202.63,20.46153139]
[1756550545448,20.0,202.65,202.63,5.62510339]
[1756550545643,20.0,202.65,202.64,15.497162]
[1756550546224,20.0,202.67,202.64,15.497162]
[1756550546430,20.0,202.67,202.66,3.95200895]
[1756550546642,20.0,202.67,202.66,4.93437284]
[1756550547431,20.0,202.67,202.66,19.76786684]
[1756550547959,20.72,202.67,202.66,19.76786684]
[1756550548143,20.0,202.67,202.66,19.76786684]
[1756550550150,20.00000001,202.69,202.66,20.42786684]
[1756550550518,20.0,202.67,202.66,19.76786684]
[1756550551549,20.0,202.67,202.66,33.46786684]
[1756550556266,24.66200895,202.67,202.66,28.533494]
[1756550556959,27.98368452,202.67,202.66,13.73]
[1756550557158,24.03167557,202.67,202.66,13.73]
[1756550557339,24.66200895,202.67,202.66,0.03]
[1756550557653,24.66200895,202.67,202.66,14.866428]
[1756550558051,20.71,202.67,202.66,14.866428]
[1756550558243,24.66200895,202.67,202.66,14.866428]
[1756550560669,20.71,202.67,202.66,14.866428]
[1756550560868,24.66200895,202.67,202.66,14.866428]
[1756550562170,27.98115276,202.67,202.66,14.866428]
[1756550562750,27.98113883,202.67,202.66,14.866428]
[1756550566665,27.98113883,202.67,202.66,0.03]
[1756550567655,27.98113883,202.67,202.66,14.866428]
[1756550568273,27.98113883,202.67,202.66,0.03]
[1756550568487,27.98113883,202.67,202.66,14.866428]
[1756550576080,24.02912988,202.67,202.66,14.866428]
[1756550576292,27.98113883,202.67,202.66,14.866428]
[1756550579366,26.55820417,202.67,202.66,14.866428]
[1756550582294,25.84820417,202.67,202.66,14.866428]
[1756550582691,22.52907429,202.67,202.66,14.866428]
[1756550582900,22.52907429,202.67,202.66,15.566428]
[1756550582901,25.85134583,202.67,202.66,15.566428]
[1756550583274,25.85134583,202.67,202.66,14.866428]
[1756550584804,26.54134583,202.67,202.66,14.866428]
[1756550587197,49.22390864,202.67,202.66,14.866428]
[1756550587375,49.22484813,202.67,202.66,6.52396283]
[1756550587576,45.07106921,202.67,202.66,6.52396283]
[1756550587775,46.0,202.64,202.63,0.03]
[1756550587998,90.19134583,202.64,202.63,0.03]
[1756550588209,104.47693984,202.64,202.63,0.03]
[1756550588416,33.59559401,202.61,202.6,0.03]
[1756550588611,33.59559401,202.58,202.55,0.03]
[1756550588900,59.59559401,202.56,202.55,0.03]
[1756550589202,65.44693984,202.56,202.55,0.03]
[1756550589413,17.55402706,202.55,202.53,1.979757]
[1756550589618,20.8762986,202.55,202.53,1.979757]
[1756550589788,21.5662986,202.55,202.53,1.979757]
[1756550590319,59.59559401,202.53,202.52,0.03]
[1756550590487,105.2162986,202.53,202.52,0.03]
[1756550590801,114.80227176,202.53,202.52,0.03]
[1756550591189,110.84383871,202.53,202.52,0.03]
[1756550591407,13.59559401,202.52,202.48,0.03]
[1756550591713,53.9168661,202.5,202.48,0.03]
[1756550592114,46.69,202.5,202.48,0.03]
[1756550592284,54.6068661,202.5,202.48,0.03]
[1756550594322,59.5451377,202.5,202.48,0.03]
[1756550595128,73.14073171,202.5,202.48,0.03]
[1756550595411,13.59559401,202.49,202.48,0.03]
[1756550595595,55.89402706,202.49,202.48,0.03]
[1756550595902,56.58402706,202.49,202.48,0.03]
[1756550596489,61.52254254,202.49,202.48,0.03]
[1756550597699,82.60402706,202.49,202.48,0.03]
[1756550598112,87.54254254,202.49,202.48,0.03]
[1756550598817,61.54254254,202.49,202.48,0.03]
[1756550600421,59.59559401,202.47,202.46,0.03]
[1756550600722,101.91402706,202.47,202.46,0.03]
[1756550601021,102.60402706,202.47,202.46,0.03]
[1756550601218,101.91402706,202.47,202.46,0.03]
[1756550602120,107.54303036,202.47,202.46,0.03]
[1756550603604,106.85303036,202.47,202.46,0.03]
[1756550604319,107.54303036,202.47,202.46,0.03]
[1756550604722,20.0,202.45,202.44,0.03]
[1756550605019,20.0,202.43,202.4,0.03]
[1756550605222,41.51246011,202.41,202.4,0.03]
[1756550605604,42.20246011,202.41,202.4,0.03]
[1756550606331,47.14292747,202.41,202.4,0.03]
[1756550607515,23.95843305,202.41,202.4,0.73]
[1756550607822,23.95843305,202.41,202.4,2.710737]
[1756550608915,20.0,202.41,202.4,7.65144846]
[1756550609728,23.95843305,202.41,202.4,7.65144846]
[1756550611020,20.0,202.41,202.4,2.710737]
[1756550611405,23.95843305,202.41,202.4,2.710737]
[1756550611903,23.95843305,202.41,202.4,2.010737]
[1756550612304,68.19246011,202.41,202.4,0.03]
[1756550613114,64.23402706,202.41,202.4,0.03]
[1756550613704,47.13292747,202.41,202.4,0.03]
[1756550616107,47.13292747,202.41,202.39,0.1]
[1756550616108,13.59559401,202.4,202.39,0.1]
[1756550616422,59.87246011,202.4,202.39,0.1]
[1756550616628,14.27559401,202.4,202.39,0.1]
[1756550616813,60.55246011,202.4,202.39,0.1]
[1756550618026,65.49317157,202.4,202.39,0.1]
[1756550620550,55.91402706,202.4,202.39,0.1]
[1756550620912,59.87246011,202.4,202.39,0.1]
[1756550622623,60.55246011,202.4,202.39,0.1]
[1756550623118,65.49317157,202.4,202.39,0.1]
[1756550624435,55.93402706,202.4,202.39,0.1]
[1756550625631,59.89246011,202.4,202.39,0.1]
[1756550626221,55.93402706,202.4,202.39,0.1]
[1756550627315,3.95843305,202.4,202.39,0.1]
[1756550627634,42.33843305,202.4,202.39,0.77]
[1756550628420,46.0,202.41,202.39,0.77]
[1756550628626,42.33843305,202.4,202.39,0.77]
[1756550629031,42.33843305,202.4,202.39,0.1]
[1756550632518,42.33843305,202.4,202.39,0.77]
[1756550633649,46.0,202.41,202.39,0.1]
[1756550633853,23.95843305,202.41,202.39,0.77]
[1756550634150,38.36,202.4,202.39,0.77]
[1756550634520,38.36,202.4,202.39,5.71093385]
[1756550634722,42.31843305,202.4,202.39,19.41093385]
[1756550635454,38.36,202.4,202.39,5.71093385]
[1756550635634,38.36,202.4,202.39,0.1]
[1756550635836,42.31843305,202.4,202.39,0.1]
[1756550636153,42.31843305,202.4,202.39,0.77]
[1756550636527,38.36,202.4,202.39,5.71095558]
[1756550637757,38.36,202.4,202.39,0.77]
[1756550638253,42.31843305,202.4,202.39,0.77]
[1756550641452,42.31843305,202.4,202.39,0.1]
[1756550641652,45.62900068,202.4,202.39,0.1]
[1756550644062,45.68900068,202.4,202.39,0.1]
[1756550646558,3.37056763,202.4,202.39,0.76]
[1756550646749,0.06,202.4,202.39,18.41843305]
[1756550647458,0.06,202.4,202.39,23.35938863]
[1756550648049,0.06,202.4,202.39,19.40095558]
[1756550649048,0.06,202.4,202.39,23.35938863]
[1756550649244,0.06,202.43,202.39,35.71177758]
[1756550649547,20.0,202.41,202.4,0.66]
[1756550650549,20.0,202.41,202.4,5.60071146]
[1756550650753,20.06,202.43,202.4,9.55914451]
[1756550651050,20.06,202.43,202.41,4.61843305]
[1756550651366,20.06,202.43,202.42,0.66]
[1756550652068,0.06,202.43,202.42,4.61843305]
[1756550652247,0.06,202.43,202.42,9.55914505]
[1756550652544,0.06,202.45,202.42,14.49936834]
[1756550652745,0.06,202.45,202.44,3.95843305]
[1756550653080,20.0,202.48,202.44,17.65843305]
[1756550653380,0.06,202.49,202.47,3.95843305]
[1756550653867,0.06,202.49,202.48,0.66]
[1756550654172,0.06,202.49,202.48,5.59875938]
[1756550654588,0.06,202.49,202.48,4.93875938]
[1756550655255,0.06,202.49,202.48,5.59875938]
[1756550655949,0.06,202.49,202.48,4.93875938]
[1756550656653,0.06,202.49,202.47,4.9390033]
[1756550656973,0.06,202.49,202.48,0.66]
[1756550657753,0.06,202.49,202.48,4.61843305]
[1756550657956,0.06,202.49,202.48,18.31843305]
[1756550658656,0.06,202.49,202.48,23.25719243]
[1756550660048,0.06,202.49,202.48,19.29875938]
[1756550660269,0.06,202.49,202.48,23.25719243]
[1756550661156,0.06,202.49,202.48,19.29875938]
[1756550664792,0.06,202.49,202.48,23.25719243]
[1756550666192,0.06,202.49,202.48,19.29875938]
[1756550666593,0.06,202.49,202.48,23.25719243]
[1756550666787,0.06,202.52,202.51,3.95843305]
[1756550666988,0.06,202.52,202.51,18.31843305]
[1756550667791,0.06,202.52,202.51,14.36]
[1756550668286,0.06,202.52,202.51,19.29802775]
[1756550668489,0.06,202.52,202.51,23.2564608]
[1756550668695,0.06,202.54,202.51,23.2564608]
[1756550668880,0.06,202.54,202.52,0.66]
[1756550669188,0.06,202.54,202.52,4.61843305]
[1756550669571,0.06,202.54,202.52,18.31843305]
[1756550669776,0.06,202.54,202.52,13.7]
[1756550670085,0.72,202.54,202.52,13.7]
[1756550671193,0.72,202.54,202.53,4.93754011]
[1756550672078,0.06,202.54,202.53,5.60754011]
[1756550672283,0.06,202.54,202.53,9.56597316]
[1756550673069,0.06,202.54,202.53,23.26597316]
[1756550673268,0.06,202.54,202.53,38.10754016]
[1756550674481,0.06,202.54,202.53,76.42754016]
[1756550677594,0.06,202.54,202.53,71.79910711]
[1756550677901,0.06,202.54,202.53,76.42754016]
[1756550678098,0.06,202.54,202.53,38.10754016]
[1756550678675,0.06,202.54,202.53,76.40754016]
[1756550678874,0.06,202.54,202.53,38.10754016]
[1756550679501,0.06,202.54,202.53,76.40754016]
[1756550682603,1e-08,202.54,202.53,90.00313417]
[1756550683504,0.06,202.57,202.56,13.69999999]
[1756550683699,0.06,202.57,202.56,55.85843304]
[1756550683902,0.06,202.57,202.56,56.52843304]
[1756550684293,0.06,202.57,202.56,71.36706304]
[1756550685707,0.06,202.57,202.56,76.30387188]
[1756550686207,0.06,202.57,202.56,72.34543883]
[1756550686416,0.06,202.57,202.56,76.30387188]
[1756550687484,0.06,202.57,202.56,72.34543883]
[1756550687691,0.06,202.57,202.56,76.30387188]
[1756550688589,0.06,202.57,202.56,33.37543883]
[1756550688790,0.78,202.57,202.56,56.83680883]
[1756550689294,0.78,202.57,202.56,60.79524188]
[1756550689804,0.78,202.57,202.56,18.53680883]
[1756550690001,24.73843305,202.57,202.56,13.59999999]
[1756550690307,24.73843305,202.57,202.54,4.93729633]
[1756550690493,20.0,202.55,202.54,4.93729633]
[1756550690809,20.72,202.55,202.54,4.93729633]
[1756550691010,20.72,202.55,202.53,56.83753719]
[1756550691219,20.0,202.55,202.53,56.83753719]
[1756550691519,0.72,202.54,202.53,56.83753719]
[1756550693317,0.72,202.54,202.53,18.53753719]
[1756550693488,0.72,202.54,202.53,56.83753719]
[1756550694516,20.0,202.55,202.53,56.83753719]
[1756550694708,20.72,202.55,202.53,56.83753719]
[1756550695698,20.72,202.55,202.54,14.8423]
[1756550696011,20.0,202.55,202.54,14.8423]
[1756550696910,20.06,202.57,202.55,4.93705257]
[1756550697088,20.78,202.57,202.55,43.23705257]
[1756550697594,20.78,202.57,202.56,14.8423]
[1756550698805,0.06,202.57,202.56,14.8423]
[1756550699306,0.06,202.57,202.56,23.73754189]
[1756550699509,0.06,202.57,202.56,19.77910884]
[1756550699715,0.06,202.57,202.56,33.37910883]
[1756550700505,0.78,202.57,202.56,33.37910883]
[1756550700815,24.73843305,202.57,202.56,28.44229999]
[1756550701313,24.73843305,202.57,202.56,13.8823]
[1756550701498,20.0,202.5,202.47,4.9390033]
[1756550701693,20.0,202.5,202.49,13.8823]
[1756550701894,20.0,202.5,202.49,52.8823]
[1756550702108,20.0,202.5,202.49,56.84073305]
[1756550702713,20.0,202.5,202.49,57.10081548]
[1756550703626,24.57843305,202.5,202.49,13.8823]
[1756550703804,23.95843305,202.5,202.49,13.8823]
[1756550703995,24.57843305,202.5,202.49,13.8823]
[1756550704201,24.57843305,202.5,202.47,13.6]
[1756550704402,3.95843305,202.49,202.48,13.8823]
[1756550704928,24.57843305,202.5,202.48,13.8823]
[1756550705434,23.95843305,202.5,202.48,13.8823]
[1756550705650,24.57843305,202.5,202.48,13.8823]
[1756550706294,24.57843305,202.5,202.48,18.82104883]
[1756550707826,20.0,202.5,202.48,18.82104883]
[1756550708626,20.0,202.5,202.48,32.42104883]
[1756550710835,23.95843305,202.5,202.48,32.42104883]
[1756550711333,23.95843305,202.5,202.48,18.53874883]
[1756550711521,23.95843305,202.5,202.49,14.848178]
[1756550711720,23.95843305,202.5,202.48,18.53874883]
[1756550711945,23.95843305,202.5,202.48,33.38692683]
[1756550712848,23.95843305,202.5,202.48,18.53874883]
[1756550713028,23.95843305,202.5,202.49,14.848178]
[1756550713218,20.0,202.52,202.49,33.12661105]
[1756550713421,20.0,202.52,202.5,4.67843305]
[1756550713637,20.0,202.52,202.51,0.72]
[1756550713837,20.0,202.52,202.51,19.52293605]
[1756550714814,20.0,202.52,202.51,24.4609638]
[1756550715114,20.0,202.52,202.51,20.50253075]
[1756550716629,20.0,202.54,202.51,24.4609638]
[1756550716832,0.06,202.56,202.53,3.95843305]
[1756550717059,0.06,202.56,202.54,47.17572938]
[1756550717210,0.06,202.56,202.55,3.95843305]
[1756550717412,0.06,202.56,202.55,4.67843305]
[1756550717613,0.06,202.56,202.55,18.27843305]
[1756550717820,0.06,202.56,202.55,13.6]
[1756550718048,20.06,202.56,202.55,66.720832]
[1756550719414,20.06,202.56,202.55,71.65788457]
[1756550720023,20.06,202.56,202.55,76.33631762]
[1756550720253,0.06,202.56,202.55,76.33631762]
[1756550722336,20.06,202.56,202.55,33.37788457]
[1756550722716,20.06,202.56,202.55,38.05631762]
[1756550722937,20.06,202.56,202.55,76.33631762]
[1756550723246,0.06,202.56,202.55,76.33631762]
[1756550723450,0.06,202.57,202.56,13.54]
[1756550723743,0.06,202.57,202.56,23.15524189]
[1756550724036,0.06,202.57,202.56,37.99387189]
[1756550730455,0.06,202.57,202.56,33.31543884]
[1756550730660,20.68,202.57,202.56,14.83863]
[1756550730846,24.63843305,202.57,202.56,14.83863]
[1756550731022,24.63843305,202.57,202.46,0.03]
[1756550731023,20.0,202.5,202.46,0.03]
[1756550731224,20.0,202.5,202.48,38.28]
[1756550731935,20.0,202.5,202.48,43.21853473]
[1756550732141,20.0,202.5,202.49,14.877442]
[1756550732735,20.0,202.5,202.49,19.81595748]
[1756550733754,20.0,202.5,202.49,20.53595748]
[1756550734156,20.0,202.5,202.49,19.81595748]
[1756550736374,20.0,202.5,202.49,58.09595748]
[1756550738965,20.0,202.52,202.49,58.81595748]
[1756550739167,20.0,202.52,202.5,4.67843305]
[1756550739354,20.0,202.52,202.51,39.0]
[1756550739558,20.0,202.52,202.51,53.125239]
[1756550741871,20.0,202.52,202.51,58.06326675]
[1756550742061,20.06,202.56,202.51,62.7416998]
[1756550742368,20.06,202.56,202.53,3.95843305]
[1756550742551,20.06,202.56,202.54,0.72]
[1756550743363,20.06,202.56,202.55,14.842301]
[1756550743677,0.06,202.56,202.55,71.34073405]
[1756550744057,0.06,202.56,202.55,76.27778662]
[1756550748752,0.06,202.56,202.55,72.31935357]
[1756550749077,0.06,202.56,202.55,76.27778662]
[1756550749976,0.06,202.56,202.55,71.59935357]
[1756550749977,4.01843305,202.56,202.55,71.59935357]
[1756550750159,4.53843305,202.56,202.55,28.382301]
[1756550750685,4.01843305,202.56,202.55,28.382301]
[1756550750986,4.01843305,202.56,202.55,14.842301]
[1756550753052,4.01843305,202.56,202.55,14.872301]
[1756550754359,4.01843305,202.56,202.55,62.74778662]
[1756550754360,0.06,202.56,202.55,62.74778662]
[1756550756002,0.06,202.56,202.55,76.28778662]
[1756550760387,0.06,202.56,202.55,72.32935357]
[1756550760593,0.06,202.56,202.55,76.28778662]
[1756550762403,0.06,202.56,202.55,38.02778662]
[1756550762610,0.06,202.56,202.55,76.28778662]
[1756550766809,3.95843305,202.62,202.55,76.28778662]
[1756550766810,1e-08,202.69,202.63,13.59559401]
[1756550767009,1e-08,202.69,202.67,3.95843305]